[Event "Serbian League 2024"]
[Site "Bajina Basta"]
[Date "2024.09.29"]
[Round "3.13"]
[White "Kuybokarov, Temur"]
[Black "Indjic, Aleksandar"]
[Result "1/2-1/2"]
[ECO "C43"]
[WhiteElo "2562"]
[BlackElo "2611"]
[Annotator "RC"]
[PlyCount "36"]
[EventDate "2024.09.26"]
[EventType "team-tourn"]
[EventCountry "SRB"]
[SourceTitle "playchess.com"]
[Source "ChessBase"]
[SourceQuality "1"]
[TimeControl "40/5400+30:1800+30"]

1. e4 {[%emt 0:00:03]} e5 {[%emt 0:00:47]} 2. Nf3 {[%emt 0:00:08]} Nf6 {[%emt 0:00:23]} 3. d4 {[%emt 0:00:15]} Nxe4 {[%emt 0:00:25]} 4. dxe5 {[%emt 0:01:05]} Bc5 {[%emt 0:01:22]} 5. Bc4 {[%emt 0:00:56]} Nxf2 {[%emt 0:00:57]} 6. Bxf7+ {[%emt 0:00:50]} Kxf7 {[%emt 0:00:16]} 7. Qd5+ {[%emt 0:00:05]} Kg6 {[%emt 0:00:17]} 8. Qxc5 {[%emt 0:00:33]} Nxh1 {[%emt 0:00:15]} 9. Nc3 {[%emt 0:00:49]} h6 {[%emt 0:00:56]} 10. Qc4 {[%emt 0:01:37]} Kh7 {[%emt 0:01:56]} 11. Nd5 {[%emt 0:01:12]} Re8 {[%emt 0:01:17]} 12. Qe4+ {[%emt 0:03:36]} Kh8 {[%emt 0:00:35]} 13. Bxh6 {[%emt 0:00:53]} gxh6 {[%emt 0:00:21]} 14. Qf4 {[%emt 0:00:18]} Re6 {[%emt 0:01:40]} 15. Nxc7 {[%emt 0:00:50]} Qxc7 {[%emt 0:00:57]} 16. Qf8+ {[%emt 0:00:21]} Kh7 {[%emt 0:00:07]} 17. Qf7+ {[%emt 0:00:47]} Kh8 {[%emt 0:00:13]} 18. Qf8+ {[%emt 0:00:55]} Kh7 {[%emt 0:00:21]} 1/2-1/2

[Event "Serbian League 2024"]
[Site "Bajina Basta"]
[Date "2024.09.29"]
[Round "3.14"]
[White "Markus, Robert"]
[Black "Sychev, Klementy"]
[Result "1/2-1/2"]
[ECO "D90"]
[WhiteElo "2586"]
[BlackElo "2532"]
[Annotator "TA"]
[PlyCount "44"]
[EventDate "2024.09.26"]
[EventType "team-tourn"]
[EventCountry "SRB"]
[SourceTitle "playchess.com"]
[Source "ChessBase"]
[SourceQuality "1"]
[TimeControl "40/5400+30:1800+30"]

{[%evp 9,44,0,-8,-6,-17,-23,-25,-2,0,0,0,0,0,-25,-18,-21,0,0,0,0,0,0,0,0,0,0,0,0,0,0,0,0,0,0,0,0,0]} 1. d4 {[%emt 0:00:06]} Nf6 {[%emt 0:00:30]} 2. c4 {[%emt 0:00:17]} g6 {[%emt 0:00:42]} 3. Nc3 {[%emt 0:01:55]} d5 {[%emt 0:02:10]} 4. Nf3 {[%emt 0:02:08]} Bg7 {[%emt 0:01:59]} 5. h4 {[%emt 0:01:48]} dxc4 {[%emt 0:07:59]} 6. e4 {[%emt 0:06:19][%cal Oe4e5] [#]} c5 $1 {[%emt 0:01:08]} 7. d5 {[%emt 0:01:08] [#]} (7. Bxc4 cxd4) 7... b5 $1 {[%emt 0:01:42] Dodges Qa4} 8. h5 {[%emt 0:02:44] Black has an edge.} O-O {[%emt 0:04:06]} 9. hxg6 {[%emt 0:01:53]} ({Of course not} 9. Nxb5 Qa5+ (9... Nxh5 10. Bxc4 Nd7 11. O-O $14) 10. Nc3 Nxe4 $15 (10... Nxh5 11. Bd2 $14)) 9... fxg6 {[%emt 0:00:31]} 10. Rh4 {[%emt 0:02:33]} a6 {[%emt 0:07:31]} 11. e5 {[%emt 0:04:55]} (11. Be2 $5) 11... Ng4 {[%emt 0:01:31]} (11... Nfd7 {simplifies} 12. a4 Nxe5 13. Nxe5 Bxe5 14. axb5 Nd7) 12. d6 {[%emt 0:02:47] The position is equal.} Nxe5 {[%emt 0:04:14]} (12... Bxe5 $2 13. Qd5+ e6 14. Qxa8 $18) 13. Qd5+ {[%emt 0:05:34]} e6 {[%emt 0:00:57]} 14. Qxa8 {[%emt 0:00:13]} Nxf3+ {[%emt 0:00:07]} 15. gxf3 {[%emt 0:00:06]} Qxh4 {[%emt 0:00:05]} 16. Qxb8 {[%emt 0:00:21]} Bd4 $1 {[%emt 0:01:34]} 17. Nd1 {[%emt 0:02:13] Strongly threatening Qc7.} ({Don't play} 17. Ne4 Qh1 18. Qa8 Qxf3 $17) 17... Qh1 {[%emt 0:02:39]} 18. Qa8 {[%emt 0:01:19]} e5 {[%emt 0:00:45][%cal Oc8h3] White must now prevent ...Bh3!} (18... Qxf3 $2 {too greedy.} 19. Qxf3 Rxf3 20. a4 $18) 19. Qd5+ {[%emt 0:01:10]} Rf7 {[%emt 0:00:27][%cal Oc8h3] Threatens to win with ...Bh3!} 20. Qa8 {[%emt 0:00:32]} Rf8 $1 {[%emt 0:00:28][%cal Oc8h3] ...Bh3! would now be deadly.} 21. Qd5+ {[%emt 0:00:11]} Rf7 {[%emt 0:00:07][%cal Oc8h3] Hoping for ...Bh3!} 22. Qa8 {[%emt 0:00:06]} Rf8 $1 {[%emt 0:00:04] A rather calm draw.   Weighted Error Value: White=0.02 (flawless) /Black=0.03 (flawless) .  OK:         	White=8     	Black=6      Best:        	White=4     	Black=4      Strong:       	---       	Black=3} 1/2-1/2

[Event "Serbian League 2024"]
[Site "Bajina Basta"]
[Date "2024.09.29"]
[Round "3.15"]
[White "Maksimovic, Bojan"]
[Black "Perunovic, Milos"]
[Result "1/2-1/2"]
[ECO "B67"]
[WhiteElo "2503"]
[BlackElo "2525"]
[Annotator "TA"]
[PlyCount "57"]
[EventDate "2024.09.26"]
[EventType "team-tourn"]
[EventCountry "SRB"]
[SourceTitle "playchess.com"]
[Source "ChessBase"]
[SourceQuality "1"]
[TimeControl "40/5400+30:1800+30"]

{[%evp 18,57,43,31,8,14,6,3,7,19,12,6,6,8,17,27,38,0,0,0,13,21,20,29,54,5,47,14,13,8,6,0,0,-27,-22,-20,-21,-35,0,-23,-17,-47]} 1. e4 {[%emt 0:00:15]} c5 {[%emt 0:00:19]} 2. Nc3 {[%emt 0:01:02]} Nc6 {[%emt 0:07:21]} 3. Nge2 {[%emt 0:00:48]} Nf6 {[%emt 0:03:26]} 4. d4 {[%emt 0:00:15]} cxd4 {[%emt 0:00:08]} 5. Nxd4 {[%emt 0:00:04]} d6 {[%emt 0:03:00]} 6. Bg5 {[%emt 0:01:23]} a6 {[%emt 0:00:17]} 7. Qd2 {[%emt 0:01:50]} e6 {[%emt 0:01:01]} 8. O-O-O {[%emt 0:00:59]} Bd7 {[%emt 0:01:12]} 9. f3 {[%emt 0:01:31]} Nxd4 {[%emt 0:15:34]} 10. Qxd4 {[%emt 0:00:08]} Bc6 {[%emt 0:00:04]} 11. h4 {[%emt 0:16:53]} h6 {[%emt 0:13:10]} 12. Be3 {[%emt 0:00:32]} d5 {[%emt 0:00:34]} 13. e5 {[%emt 0:19:18]} Nd7 {[%emt 0:00:30]} 14. f4 {[%emt 0:00:35]} Rc8 {[%emt 0:16:15]} 15. Rh3 {[%emt 0:03:42][%cal Of4f5]} Bc5 {[%emt 0:06:35]} 16. Qd2 {[%emt 0:00:51]} O-O {[%emt 0:00:06]} 17. Qf2 {[%emt 0:21:25]} Bxe3+ {[%emt 0:07:17]} 18. Rxe3 {[%emt 0:00:48]} f6 {[%emt 0:05:23]} 19. exf6 {[%emt 0:07:43]} Qxf6 {[%emt 0:01:31][%cal Od5d4] [#] White must now prevent ...d4!} 20. g3 {[%emt 0:02:30]} Nc5 {[%emt 0:02:24] Strongly threatening ...d4.} 21. Ree1 {[%emt 0:01:41]} (21. Qd2 $14) 21... Na4 {[%emt 0:04:47]} 22. Qd4 {[%emt 0:12:38]} Nxc3 {[%emt 0:02:00]} 23. bxc3 {[%emt 0:00:37]} (23. Qxc3 {simplifies} Qxc3 24. bxc3 Kf7 25. Re5) 23... Be8 {[%emt 0:03:23]} 24. Re5 {[%emt 0:04:00]} Bg6 {[%emt 0:01:32]} 25. Bh3 {[%emt 0:00:21]} Rc6 {[%emt 0:00:46]} 26. Rde1 {[%emt 0:00:27][%cal Rh3e6]} Be4 {[%emt 0:01:41]} 27. Re3 {[%emt 0:00:12]} Kh8 {[%emt 0:01:34]} 28. Kd2 {[%emt 0:00:34]} Rfc8 {[%emt 0:01:34]} 29. Qb4 {[%emt 0:00:35] Weighted Error Value: White=0.12 (very precise) /Black=0.07 (flawless) .  Mistake:       	White=1     	---        Inaccurate:     	White=4     	Black=2      OK:         	White=4     	Black=12     Best:        	White=1     	---} 1/2-1/2

[Event "Serbian League 2024"]
[Site "Bajina Basta"]
[Date "2024.09.29"]
[Round "3.16"]
[White "Ivanisevic, Ivan"]
[Black "Pap, Misa"]
[Result "1-0"]
[ECO "E32"]
[WhiteElo "2519"]
[BlackElo "2389"]
[Annotator "TA"]
[PlyCount "97"]
[EventDate "2024.09.26"]
[EventType "team-tourn"]
[EventCountry "SRB"]
[SourceTitle "playchess.com"]
[Source "ChessBase"]
[SourceQuality "1"]
[TimeControl "40/5400+30:1800+30"]

{[%evp 9,97,15,18,16,20,0,0,-2,-11,-30,32,-8,-19,-45,-58,-51,-57,-44,-50,-47,-43,-54,-36,-42,-30,-31,-40,-51,-42,-38,-36,-40,-39,-33,-27,-27,-29,-34,-40,-40,43,13,34,0,12,-71,-71,-70,-48,-70,-66,-74,-11,-13,0,0,53,46,114,25,95,107,98,105,97,103,118,147,116,118,242,159,373,370,370,304,516,357,357,356,358,358,358,349,355,348,29974,29975,29974,29973]} 1. d4 {[%emt 0:00:03]} Nf6 {[%emt 0:00:16]} 2. c4 {[%emt 0:00:06]} e6 {[%emt 0:00:05]} 3. Nc3 {[%emt 0:00:05]} Bb4 {[%emt 0:00:15]} 4. Qc2 {[%emt 0:00:08]} d6 {[%emt 0:00:17][%cal Bd7d6,Bd6d5][%mdl 32]} 5. e3 {[%emt 0:02:21]} O-O {[%emt 0:01:41]} 6. Bd3 {[%emt 0:00:14]} c5 {[%emt 0:00:18]} 7. Nge2 {[%emt 0:00:21]} d5 {[%emt 0:00:21]} 8. a3 {[%emt 0:04:27] The position is equal.} Bxc3+ {[%emt 0:02:16]} 9. bxc3 {[%emt 0:01:56]} Nc6 {[%emt 0:05:37]} ({Black should try} 9... b5 $1 $11 10. cxd5 (10. cxb5 $2 c4 $19) 10... c4) 10. O-O {[%emt 0:01:03]} Na5 {[%emt 0:05:02]} 11. cxd5 {[%emt 0:08:23]} (11. dxc5 $2 dxc4 12. Be4 Nb3 $17) 11... c4 {[%emt 0:06:32]} 12. Be4 {[%emt 0:00:08]} exd5 {[%emt 0:02:14]} (12... Nxd5 13. Bxh7+ Kh8 14. Be4 $16) 13. Bf3 {[%emt 0:00:21]} Nb3 {[%emt 0:05:45]} 14. Ra2 {[%emt 0:00:44]} Re8 {[%emt 0:07:16]} 15. Ng3 {[%emt 0:06:23]} Bg4 {[%emt 0:09:50]} 16. Bxg4 {[%emt 0:14:32]} Nxg4 {[%emt 0:00:16]} 17. h3 {[%emt 0:00:09]} Nf6 {[%emt 0:00:08]} 18. f3 {[%emt 0:03:02]} Qc7 {[%emt 0:04:17]} 19. Qf2 {[%emt 0:04:07]} Re6 {[%emt 0:02:49]} 20. Re2 {[%emt 0:06:17]} Rae8 {[%emt 0:00:27]} 21. Bb2 {[%emt 0:00:58]} g6 {[%emt 0:09:51]} 22. Rfe1 {[%emt 0:03:12]} h5 {[%emt 0:01:45]} 23. Nf1 {[%emt 0:02:54]} b5 {[%emt 0:06:22]} 24. a4 {[%emt 0:05:00]} Qe7 {[%emt 0:07:34]} ({Black should play} 24... bxa4 $15 25. Ba3 Kh8) 25. axb5 $14 {[%emt 0:01:21]} Rb8 {[%emt 0:00:04]} 26. Qh4 {[%emt 0:04:03]} Rxb5 {[%emt 0:00:47]} 27. Qf4 {[%emt 0:04:55]} (27. g4 $11 {remains equal.}) 27... a5 $1 $17 {[%emt 0:02:51]} 28. e4 {[%emt 0:03:25]} a4 {[%emt 0:01:22] ...dxe4 would now be deadly.} 29. e5 {[%emt 0:06:27]} Ne8 {[%emt 0:01:18]} 30. Bc1 {[%emt 0:00:22][%cal Bb2c1,Bc1e3,Be3f2][%mdl 32]} a3 {[%emt 0:03:47]} (30... Nxc1 $17 31. Qxc1 Ra6) 31. Ra2 {[%emt 0:00:34]} Ra5 {[%emt 0:01:00]} 32. Be3 {[%emt 0:07:09]} Nc7 {[%emt 0:01:23]} (32... f6 $1 $11) 33. Bf2 {[%emt 0:00:47]} g5 {[%emt 0:01:03] Prevents Bh4.} (33... Rb6 $14) 34. Qf5 $16 {[%emt 0:00:40] Strongly threatening Ng3.} Rg6 {[%emt 0:03:12]} (34... Nb5 $11 {keeps the balance.} 35. Qc2 Kh8) 35. Qc8+ {[%emt 0:01:09]} Kh7 {[%emt 0:00:35]} 36. Ng3 {[%emt 0:01:04]} Ra8 {[%emt 0:03:06]} 37. Qf5 {[%emt 0:01:59] White is more active.} Nb5 {[%emt 0:03:49]} 38. Qc2 {[%emt 0:02:54]} h4 {[%emt 0:00:30]} 39. Nh5 {[%emt 0:00:43] Hoping for Nf6+.} Raa6 {[%emt 0:00:55]} (39... Kg8 $16) 40. f4 {[%emt 0:00:22] Threatens to win with f5.} gxf4 {[%emt 0:00:18] A mistake that costs the game.} (40... Kh8 $16 {was called for.} 41. Re3 (41. f5 Rg8 $16) 41... Qd8) 41. Nf6+ {[%emt 0:07:11]} Raxf6 {[%emt 0:08:14] [#]} 42. Bxh4 $1 {[%emt 0:04:31]} Qa7 $2 {[%emt 0:20:44]} (42... N3xd4 {was worth a try.} 43. cxd4 Nxd4) 43. exf6 {[%emt 0:09:40]} N5xd4 {[%emt 0:00:26]} 44. cxd4 {[%emt 0:00:21]} Nxd4 {[%emt 0:00:09] [#]} 45. Qd1 {[%emt 0:00:34]} (45. Qf2 Nf3+ 46. Kh1 Qxf2 47. Bxf2 Nxe1 48. Bxe1 d4 $16) 45... Nf3+ {[%emt 0:00:51]} 46. Kh1 {[%emt 0:00:13]} Nxe1 {[%emt 0:01:47]} 47. Bxe1 {[%emt 0:04:37]} Qe3 $2 {[%emt 0:03:49]} (47... d4 $18 48. Bf2 Qb7 49. Bxd4 c3 50. Qh5+ (50. Rxa3 $2 Qxg2#) (50. Bxc3 f3 $18) 50... Rh6 51. Qf5+ Rg6) 48. Qh5+ {[%emt 0:00:35]} Kg8 {[%emt 0:00:04]} 49. Re2 {[%emt 0:00:06] Weighted Error Value: White=0.16 (very precise) /Black=0.50.  Loses game:     	---       	Black=1      Mistake:       	White=1     	Black=9      Inaccurate:     	White=4     	---        OK:         	White=16    	Black=19     Best:        	White=6     	Black=3      Strong:       	White=1     	Black=1} 1-0

[Event "Serbian League 2024"]
[Site "Bajina Basta"]
[Date "2024.09.29"]
[Round "3.17"]
[White "Damljanovic, Branko"]
[Black "Kosic, Dragan"]
[Result "1-0"]
[ECO "A39"]
[WhiteElo "2354"]
[BlackElo "2371"]
[Annotator "RC"]
[PlyCount "112"]
[EventDate "2024.09.26"]
[EventType "team-tourn"]
[EventCountry "SRB"]
[SourceTitle "playchess.com"]
[Source "ChessBase"]
[SourceQuality "1"]
[TimeControl "40/5400+30:1800+30"]

1. c4 {[%emt 0:00:35]} c5 {[%emt 0:03:18]} 2. Nf3 {[%emt 0:00:33]} Nc6 {[%emt 0:01:33]} 3. Nc3 {[%emt 0:00:36]} Nf6 {[%emt 0:00:18]} 4. g3 {[%emt 0:03:44]} g6 {[%emt 0:04:53]} 5. Bg2 {[%emt 0:02:08]} Bg7 {[%emt 0:00:09]} 6. d4 {[%emt 0:00:06]} cxd4 {[%emt 0:00:25]} 7. Nxd4 {[%emt 0:00:02]} Nxd4 {[%emt 0:00:10]} 8. Qxd4 {[%emt 0:00:06]} O-O {[%emt 0:00:06]} 9. O-O {[%emt 0:10:57]} d6 {[%emt 0:02:33]} 10. Bd2 {[%emt 0:01:00]} Be6 {[%emt 0:01:45]} 11. Qd3 {[%emt 0:01:01]} Qc8 {[%emt 0:05:50]} 12. b3 {[%emt 0:05:03]} Bh3 {[%emt 0:03:47]} 13. Rac1 {[%emt 0:00:10]} Bxg2 {[%emt 0:00:26]} 14. Kxg2 {[%emt 0:00:02]} Qc6+ {[%emt 0:00:20]} 15. f3 {[%emt 0:01:08]} h6 {[%emt 0:03:00]} 16. Rfd1 {[%emt 0:01:38]} a6 {[%emt 0:05:43]} 17. Be1 {[%emt 0:03:38]} Rfc8 {[%emt 0:05:29]} 18. a4 {[%emt 0:01:48]} a5 {[%emt 0:02:32]} 19. Bf2 {[%emt 0:20:31]} Qe8 {[%emt 0:01:31]} 20. Nb5 {[%emt 0:03:56]} Rc6 {[%emt 0:08:04]} 21. e4 {[%emt 0:08:08]} Nd7 {[%emt 0:02:36]} 22. f4 {[%emt 0:00:21]} Nc5 {[%emt 0:03:57]} 23. Qf3 {[%emt 0:02:46]} b6 {[%emt 0:06:26]} 24. Rd5 {[%emt 0:07:23]} Rcc8 {[%emt 0:07:42]} 25. Rcd1 {[%emt 0:02:59]} Kh7 {[%emt 0:00:25]} 26. Bxc5 {[%emt 0:07:16]} bxc5 {[%emt 0:01:23]} 27. h4 {[%emt 0:00:10]} h5 {[%emt 0:03:09]} 28. g4 {[%emt 0:00:15]} hxg4 29. Qxg4 {[%emt 0:00:01]} Bh6 {[%emt 0:01:02]} 30. h5 {[%emt 0:03:05]} Qg8 {[%emt 0:02:40]} 31. Kf3 {[%emt 0:00:58]} gxh5 {[%emt 0:00:56]} 32. Qxh5 {[%emt 0:00:04]} Qg6 {[%emt 0:00:11]} 33. Rh1 {[%emt 0:00:35]} Rh8 {[%emt 0:03:45]} 34. Qh2 {[%emt 0:09:06]} f5 {[%emt 0:03:18]} 35. Rxf5 {[%emt 0:00:59]} Raf8 {[%emt 0:00:36]} 36. Rh5 {[%emt 0:00:41]} Rf6 {[%emt 0:02:05]} 37. f5 {[%emt 0:00:41]} Qg7 {[%emt 0:00:03]} 38. Rg1 {[%emt 0:01:58]} Qf8 {[%emt 0:03:39]} 39. Ke2 {[%emt 0:01:43]} Rg8 {[%emt 0:00:30]} 40. Nc7 {[%emt 0:00:25]} Rxg1 {[%emt 0:10:18]} 41. Qxg1 {[%emt 0:31:22]} e6 {[%emt 0:30:13]} 42. Nxe6 {[%emt 0:00:00]} Rxe6 {[%emt 0:00:00]} 43. fxe6 {[%emt 0:00:00]} Qf4 {[%emt 0:00:00]} 44. Rxh6+ {[%emt 0:00:00]} Qxh6 {[%emt 0:00:00]} 45. Qg4 {[%emt 0:00:00]} Qh2+ {[%emt 0:00:00]} 46. Kf3 {[%emt 0:00:00]} Qh1+ {[%emt 0:00:00]} 47. Kg3 {[%emt 0:00:00]} Qg1+ {[%emt 0:00:00]} 48. Kf4 {[%emt 0:00:00]} Qh2+ {[%emt 0:00:00]} 49. Ke3 {[%emt 0:00:00]} Qh6+ {[%emt 0:00:00]} 50. Kd3 {[%emt 0:00:00]} Qf6 {[%emt 0:00:00]} 51. e5 {[%emt 0:00:00]} Qf1+ {[%emt 0:00:00]} 52. Ke4 {[%emt 0:00:25]} Qh1+ {[%emt 0:04:16]} 53. Qf3 {[%emt 0:00:46]} Qe1+ {[%emt 0:00:54]} 54. Qe3 {[%emt 0:01:39]} Qh1+ {[%emt 0:00:13]} 55. Kf5 {[%emt 0:00:47]} Qf1+ {[%emt 0:02:18]} 56. Qf4 {[%emt 0:00:32]} Qb1+ {[%emt 0:04:03]} 1-0

[Event "Serbian League 2024"]
[Site "Bajina Basta"]
[Date "2024.09.29"]
[Round "3.18"]
[White "Miljkovic, Miroslav D"]
[Black "Ivanovic, Marko"]
[Result "1/2-1/2"]
[ECO "C48"]
[WhiteElo "2420"]
[BlackElo "2240"]
[Annotator "TA"]
[PlyCount "33"]
[EventDate "2024.09.26"]
[EventType "team-tourn"]
[EventCountry "SRB"]
[SourceTitle "playchess.com"]
[Source "ChessBase"]
[SourceQuality "1"]
[TimeControl "40/5400+30:1800+30"]

{[%evp 9,33,14,13,16,38,14,12,0,0,6,10,19,14,18,0,16,20,20,25,29,17,0,47,54,52,0]} 1. e4 {[%emt 1:31:00]} e5 {[%emt 0:03:50]} 2. Nf3 {[%emt 0:00:00]} Nc6 {[%emt 0:00:07]} 3. Nc3 {[%emt 0:00:00]} Nf6 {[%emt 0:00:07]} 4. Bb5 {[%emt 0:00:00]} Bd6 {[%emt 0:00:13]} 5. O-O {[%emt 0:00:00]} O-O {[%emt 0:00:27]} 6. d3 {[%emt 0:00:00][%cal Bd2d3,Bd3d4][%mdl 32]} h6 {[%emt 0:00:57]} 7. h3 {[%emt 0:00:00]} Re8 {[%emt 0:02:09]} 8. Be3 {[%emt 0:00:00] The position is equal.} Ne7 {[%emt 0:07:59][%cal Bc6e7,Be7g6,Bg6e5][%mdl 32]} 9. d4 {[%emt 0:00:00]} Ng6 {[%emt 0:00:36]} 10. Re1 {[%emt 0:00:00]} a6 {[%emt 0:18:28]} 11. Bd3 {[%emt 0:00:00]} b5 {[%emt 0:01:06]} 12. dxe5 {[%emt 0:00:00]} Nxe5 {[%emt 0:00:15]} 13. Bd4 {[%emt 0:00:00]} Nc6 {[%emt 0:17:09]} 14. Bxf6 {[%emt 0:00:00]} Qxf6 {[%emt 0:00:26]} 15. a4 {[%emt 0:00:00]} b4 {[%emt 0:03:25]} (15... bxa4 $11 {was preferrable.} 16. Rxa4 Bb7) 16. Nd5 $14 {[%emt 0:00:00]} Qd8 {[%emt 0:00:08]} 17. Ne3 {[%emt 0:00:00] Weighted Error Value: White=0.05 (flawless) /Black=0.09 (flawless) .  Mistake:       	White=1     	Black=1      OK:         	White=4     	Black=5      Best:        	White=1     	---} (17. Bc4 $14) 1/2-1/2

[Event "Serbian League 2024"]
[Site "Bajina Basta"]
[Date "2024.09.29"]
[Round "3.19"]
[White "Benkovic, Petar"]
[Black "Ivic, Velimir"]
[Result "1/2-1/2"]
[ECO "E14"]
[WhiteElo "2362"]
[BlackElo "2599"]
[Annotator "TA"]
[PlyCount "80"]
[EventDate "2024.09.26"]
[EventType "team-tourn"]
[EventCountry "SRB"]
[SourceTitle "playchess.com"]
[Source "ChessBase"]
[SourceQuality "1"]
[TimeControl "40/5400+30:1800+30"]

{[%evp 9,80,-1,0,-13,-12,-15,-2,-16,-1,-5,-19,-20,-17,-16,-22,-30,-11,-41,-34,-39,-26,-27,-16,0,0,-11,35,-31,-35,-38,-36,-30,-29,-38,-38,-46,-34,-37,-47,-41,-11,0,0,0,0,0,0,0,9,0,12,7,7,0,0,-364,-36,-38,-31,-77,0,0,0,0,0,0,0,0,0,0,0,0,820]} 1. Nf3 {[%emt 0:00:05]} d5 {[%emt 0:00:14]} 2. d4 {[%emt 0:00:12]} Nf6 {[%emt 0:00:27]} 3. c4 {[%emt 0:00:11]} e6 {[%emt 0:00:20]} 4. e3 {[%emt 0:03:25]} b6 {[%emt 0:00:37]} 5. cxd5 {[%emt 0:01:20]} exd5 {[%emt 0:00:10]} 6. Bb5+ {[%emt 0:00:13]} c6 {[%emt 0:00:21]} 7. Bd3 {[%emt 0:00:12]} Bd6 {[%emt 0:01:20]} 8. O-O {[%emt 0:03:41]} O-O {[%emt 0:00:30]} 9. Qc2 {[%emt 0:04:40]} Re8 {[%emt 0:02:52]} 10. Nbd2 {[%emt 0:06:18]} Qe7 {[%emt 0:05:13]} 11. b3 {[%emt 0:05:41]} Bb7 {[%emt 0:02:19]} 12. Bb2 {[%emt 0:02:13]} Nbd7 {[%emt 0:00:44]} 13. Rfe1 {[%emt 0:04:48]} Ne4 {[%emt 0:01:45]} 14. Nf1 {[%emt 0:08:12]} Rac8 {[%emt 0:07:38]} 15. Rac1 {[%emt 0:02:38]} h5 {[%emt 0:07:42]} 16. N3d2 {[%emt 0:16:48]} h4 {[%emt 0:12:34]} 17. f3 {[%emt 0:04:38]} Nef6 {[%emt 0:01:57]} (17... Ng5 $11) 18. Bf5 {[%emt 0:13:37]} (18. e4 $14 Bf4 19. g3 dxe4 20. Bxe4) 18... c5 {[%emt 0:02:18]} 19. Qb1 {[%emt 0:00:34]} Rcd8 {[%emt 0:12:36]} 20. e4 {[%emt 0:07:22]} dxe4 {[%emt 0:01:16]} 21. Nxe4 {[%emt 0:00:42]} Bxe4 {[%emt 0:01:52]} 22. Bxe4 {[%emt 0:00:29][%cal Oe4h7] White is weak on the dark squares} Qf8 {[%emt 0:02:04]} 23. Kh1 {[%emt 0:06:47]} cxd4 {[%emt 0:01:45]} 24. Bxd4 {[%emt 0:00:34]} Be5 {[%emt 0:00:50]} 25. Bf2 {[%emt 0:01:20]} h3 {[%emt 0:02:09]} 26. gxh3 {[%emt 0:00:29]} Nc5 {[%emt 0:01:03]} 27. Bxc5 {[%emt 0:00:30]} bxc5 {[%emt 0:00:05]} 28. Bc6 {[%emt 0:00:42]} Re6 {[%emt 0:02:28][%cal Of8e7]} 29. Bb5 {[%emt 0:00:20]} Rd4 {[%emt 0:03:47]} 30. Qc2 {[%emt 0:02:33]} Qa8 {[%emt 0:01:21]} 31. Qg2 {[%emt 0:02:15]} Nh5 {[%emt 0:07:52] White must now prevent ...Nf4.} 32. Ng3 $2 {[%emt 0:00:06][%mdl 8192]} (32. Rxc5 $11 {and White stays safe.} Nf4 33. Qf2 Nxh3 34. Qg2) 32... Nf4 $2 {[%emt 0:01:47]} (32... Bxg3 $1 $19 33. hxg3 (33. Rxe6 $2 fxe6 34. hxg3 Qb8 $19) 33... Qb8 34. Rxe6 fxe6) 33. Qf1 $15 {[%emt 0:00:02]} Rd2 {[%emt 0:03:27]} 34. Bc4 {[%emt 0:00:46] [#]} (34. Re4 $15) 34... Nxh3 $1 {[%emt 0:06:28]} 35. Bxe6 $11 {[%emt 0:01:40] The position is equal.} Nf2+ {[%emt 0:00:02]} 36. Kg2 {[%emt 0:01:04]} Nd3+ {[%emt 0:03:45]} 37. Kh1 {[%emt 0:00:33][%cal Oe1e5] aiming for Rxe5!} Nf2+ {[%emt 0:04:26]} 38. Kg2 {[%emt 0:00:06]} Nd3+ {[%emt 0:00:38]} 39. Kh1 {[%emt 0:00:08][%cal Oe1e5] Strongly threatening Rxe5!} Nf2+ {[%emt 0:00:41]} 40. Kg2 {[%emt 0:02:36]} Bd4 $2 {[%emt 0:01:07][%mdl 40960] White used his chance.   Weighted Error Value: White=0.22 (precise) /Black=0.15 (very precise) .  Loses game:     	White=1     	Black=1      Missed win:     	---       	Black=1      Mistake:       	White=2     	Black=2      Inaccurate:     	White=1     	Black=1      OK:         	White=13    	Black=13     Best:        	White=2     	Black=3     . An unexpected result.} (40... Ng4+ $11 41. Kh3 Nf2+ 42. Kg2) 1/2-1/2